[Event "XVII Orsha-2019 Open"]
[Site "Orsha"]
[Date "2019.01.19"]
[Round "3.37"]
[White "Petrosyan, Sahak"]
[Black "Shaban, Aliaksandra"]
[Result "1-0"]
[ECO "B04"]
[WhiteElo "1835"]
[BlackElo "1482"]
[PlyCount "147"]
[EventDate "2019.01.18"]
[EventType "swiss"]
[EventCountry "BLR"]
[TimeControl "5400+30"]

1. e4 Nf6 2. e5 Nd5 3. d4 d6 4. c4 Nb6 5. exd6 cxd6 6. Nf3 g6 7. Be3 Bg7 8. Qd2 O-O 9. Bh6 Bf5 10. h4 Nc6 11. h5 Nd7 12. Bxg7 Kxg7 13. hxg6 Bxg6 14. Bd3 Rh8 15. Qh6+ Kg8 16. Bxg6 fxg6 17. Nc3 Qf8 18. Qe3 e5 19. O-O-O Re8 20. d5 Ne7 21. Ne4 Nc8 22. Rh4 Nf6 23. Rdh1 Nxe4 24. Qxe4 Qf5 25. Qxf5 gxf5 26. Ng5 Re7 27. Ne6 Rf7 28. Rh6 Nb6 29. R1h5 Re7 30. Rf6 h6 31. Rhxf5 Nd7 32. Rg6+ Kh7 33. Rg4 Rg8 34. Rxg8 Kxg8 35. f3 a6 36. b3 b5 37. Kd2 bxc4 38. bxc4 Re8 39. Rh5 Kh7 40. Rh4 Rg8 41. g4 Kg6 42. Rh2 Rc8 43. Kd3 e4+ 44. Kd4 exf3 45. Rb2 Ne5 46. c5 Nxg4 47. cxd6 f2 48. Rb1 Rb8 49. Rf1 Kf7 50. d7 Ke7 51. d8=Q+ Rxd8 52. Nxd8 Kxd8 53. Ke4 Kd7 54. Kf4 h5 55. Kg5 Kd6 56. Kxh5 Nf6+ 57. Kg5 Nxd5 58. Rxf2 Kc5 59. Kf5 a5 60. Ke4 Kc4 61. Rc2+ Nc3+ 62. Ke3 Kb4 63. Kd3 Na4 64. Kd2 Nc5 65. a3+ Kb5 66. Kc3 Na6 67. Rh2 Ka4 68. Kb2 Nc5 69. Rh4+ Kb5 70. Rh5 Kc4 71. Kc2 a4 72. Rh4+ Kb5 73. Kc3 Kc6 74. Kb4 1-0

[Event "XVII Orsha-2019 Open"]
[Site "Orsha"]
[Date "2019.01.19"]
[Round "3.38"]
[White "Borodulin, Pavel"]
[Black "Klachkou, Platon"]
[Result "0-1"]
[ECO "E83"]
[WhiteElo "1481"]
[BlackElo "1771"]
[PlyCount "68"]
[EventDate "2019.01.18"]
[EventType "swiss"]
[EventCountry "BLR"]
[TimeControl "5400+30"]

1. d4 Nf6 2. c4 g6 3. Nc3 Bg7 4. e4 d6 5. f3 O-O 6. Be3 Nc6 7. Nge2 a6 8. Ng3 Rb8 9. Be2 Re8 10. O-O e5 11. d5 Nd4 12. f4 Nxe2+ 13. Qxe2 exf4 14. Bxf4 Ng4 15. Qd2 Qh4 16. h3 Ne5 17. b3 h6 18. Rac1 g5 19. Bxe5 Bxe5 20. Qf2 f6 21. Nf5 Qxf2+ 22. Rxf2 Bxf5 23. Rxf5 Kg7 24. Ne2 Kg6 25. g4 h5 26. Kg2 hxg4 27. hxg4 Rh8 28. Rff1 Rh2+ 29. Kf3 Rbh8 30. Ng1 Rxa2 31. Rf2 Ra3 32. Rb1 a5 33. Ke2 Rh4 34. Rg2 Ra2+ 0-1

[Event "XVII Orsha-2019 Open"]
[Site "Orsha"]
[Date "2019.01.19"]
[Round "3.39"]
[White "Vlasov, Andrey"]
[Black "Davidov, Alexey"]
[Result "0-1"]
[ECO "B08"]
[WhiteElo "2316"]
[BlackElo "1688"]
[PlyCount "128"]
[EventDate "2019.01.18"]
[EventType "swiss"]
[EventCountry "BLR"]
[TimeControl "5400+30"]

1. e4 d6 2. d4 Nf6 3. Nc3 g6 4. Bf4 Bg7 5. Nf3 O-O 6. Qd2 a6 7. O-O-O b5 8. h4 b4 9. Nd5 Nxe4 10. Qe3 Nf6 11. Nxf6+ exf6 12. Bh6 Re8 13. Qf4 Bb7 14. Bd3 Nd7 15. Bxg7 Kxg7 16. h5 g5 17. h6+ Kh8 18. Qf5 Nf8 19. Rde1 Rxe1+ 20. Rxe1 Bc8 21. Qe4 Bd7 22. Qe7 Kg8 23. Qe4 Ng6 24. g3 c6 25. Qe3 Qf8 26. Qd2 a5 27. Rh1 Be6 28. b3 Bd5 29. Qd1 g4 30. Be2 gxf3 31. Bxf3 Bxf3 32. Qxf3 Qe7 33. Qxc6 Re8 34. Qf3 Qe4 35. Qd1 Qe2 36. Rh5 Qxd1+ 37. Kxd1 Re4 38. Rd5 Kf8 39. Rxd6 Ke7 40. Rd5 Ke6 41. Rxa5 Rxd4+ 42. Ke2 Ne7 43. Ke3 Rd6 44. Rb5 Nd5+ 45. Kf3 Ke5 46. Ke2 Kd4 47. Kd2 Ra6 48. Rb7 f5 49. Rxf7 Rxh6 50. Rd7 Rh2 51. Ke2 Ke5 52. Kf3 Ke6 53. Rb7 h5 54. Rh7 Rh1 55. Rh6+ Ke5 56. Kg2 Rc1 57. Rxh5 Rxc2 58. Kf3 Nf6 59. Rg5 Rxa2 60. Rg7 Rb2 61. Re7+ Kd6 62. Re3 Nd5 63. Rd3 Ke5 64. g4 fxg4+ 0-1

[Event "XVII Orsha-2019 Open"]
[Site "Orsha"]
[Date "2019.01.19"]
[Round "3.40"]
[White "Gusenkova, Karina"]
[Black "Karas, Andrei"]
[Result "0-1"]
[ECO "A36"]
[WhiteElo "1642"]
[BlackElo "1422"]
[PlyCount "118"]
[EventDate "2019.01.18"]
[EventType "swiss"]
[EventCountry "BLR"]
[TimeControl "5400+30"]

1. c4 c5 2. Nc3 g6 3. g3 Bg7 4. Bg2 Nc6 5. e3 e5 6. Nge2 Nge7 7. d3 O-O 8. O-O d6 9. a3 Rb8 10. Rb1 Be6 11. Nd5 b5 12. Bd2 bxc4 13. dxc4 Bf5 14. e4 Bg4 15. h3 Bd7 16. b4 Nxd5 17. exd5 Nd4 18. Nxd4 cxd4 19. Rc1 Re8 20. c5 Bb5 21. Re1 Rc8 22. c6 Qb6 23. Qb3 Qa6 24. h4 f5 25. Bf1 Bxf1 26. Rxf1 Qe2 27. Rcd1 Qg4 28. Kh2 f4 29. gxf4 Qxh4+ 30. Qh3 Qe7 31. Rde1 e4 32. Rh1 Qf7 33. Rxe4 Qxd5 34. Rxe8+ Rxe8 35. c7 Qf5 36. Qxf5 gxf5 37. Rc1 Rc8 38. b5 Kf7 39. a4 d3 40. a5 Bd4 41. Kg2 Ke6 42. Kf3 Kd7 43. Rh1 Kxc7 44. Rxh7+ Kb8 45. Be3 Bxe3 46. fxe3 Rc5 47. b6 axb6 48. axb6 Rb5 49. Rf7 Rd5 50. e4 d2 51. exd5 d1=Q+ 52. Ke3 Qxd5 53. Re7 Qc5+ 54. Kd3 Qxb6 55. Re8+ Kc7 56. Re7+ Kc6 57. Re2 Kd5 58. Rc2 Qd4+ 59. Ke2 Qxf4 0-1

[Event "XVII Orsha-2019 Open"]
[Site "Orsha"]
[Date "2019.01.20"]
[Round "4"]
[White "Aliakbarov, Anar"]
[Black "Pogosian, Georgy"]
[Result "1-0"]
[ECO "D97"]
[WhiteElo "2282"]
[BlackElo "2090"]
[Annotator "NA RC"]
[PlyCount "57"]
[EventDate "2019.01.18"]
[EventType "swiss"]
[EventCountry "BLR"]
[SourceTitle "playchess.com"]
[Source "ChessBase"]
[SourceQuality "1"]
[TimeControl "5400+30"]

1. d4 {[%emt 0:00:00]} Nf6 {[%emt 0:00:00]} 2. c4 {[%emt 0:00:00]} g6 {[%emt 0:00:14]} 3. Nc3 {[%emt 0:00:14]} d5 {[%emt 0:00:45]} 4. Nf3 {[%emt 0:00:46]} Bg7 {[%emt 0:00:13]} 5. Qb3 {[%emt 0:01:05]} dxc4 {[%emt 0:02:02]} 6. Qxc4 {[%emt 0:00:08]} O-O {[%emt 0:00:17]} 7. e4 {[%emt 0:00:21]} c6 {[%emt 0:02:50]} 8. Qb3 {[%emt 0:01:21]} b5 {[%emt 0:14:36] LiveBook: 4 Games D97: Grünfeld: Russian System: 7 e4, replies other than 7...Bg4} (8... e5 9. dxe5 Ng4 10. Be2 Nxe5 11. Nxe5 Bxe5 12. O-O Qe7 13. Be3 Be6 14. Qc2 Nd7 15. Rad1 Nf6 16. h3 Rfd8 17. Rxd8+ Rxd8 18. Bxa7 {½-½ (28) Radjabov,T (2735)-Mamedyarov,S (2760) Wijk aan Zee 2008}) 9. e5 {[%emt 0:02:37]} Be6 {[%emt 0:07:29]} 10. exf6 {[%emt 0:01:29]} Bxb3 {[%emt 0:00:33]} 11. fxg7 {[%emt 0:00:07]} Kxg7 {[%emt 0:04:04]} 12. axb3 {[%emt 0:00:06]} Qd7 $146 {[%emt 0:00:45]} 13. Be3 {[%emt 0:11:16]} Qe6 {[%emt 0:12:28]} 14. Be2 {[%emt 0:18:50]} (14. d5 $5 cxd5 15. Bxb5 $14) 14... Qxb3 {[%emt 0:01:37]} 15. Rb1 {[%emt 0:00:03]} Nd7 {[%emt 0:15:49]} 16. h4 $15 {[%emt 0:02:39]} f6 {[%emt 0:14:16]} 17. O-O {[%emt 0:04:47]} f5 {[%emt 0:10:06]} 18. Bf4 {[%emt 0:01:27]} h6 {[%emt 0:04:01]} 19. Rfe1 {[%emt 0:00:30]} Rfe8 {[%emt 0:01:51]} 20. d5 {[%emt 0:13:18]} cxd5 {[%emt 0:02:14]} 21. Nd4 {[%emt 0:06:09]} Qb4 {[%emt 0:00:22]} 22. Ne6+ {[%emt 0:00:07]} Kf7 {[%emt 0:02:36]} 23. Nxd5 {[%emt 0:03:58]} Qb3 {[%emt 0:01:09]} 24. Ndc7 {[%emt 0:00:20]} Rec8 {[%emt 0:00:38]} 25. Nxa8 {[%emt 0:00:40]} Rxa8 {[%emt 0:00:46]} 26. Bf3 {[%emt 0:03:07]} Rc8 {[%emt 0:00:15]} 27. Bxh6 {[%emt 0:01:24]} Nc5 {[%emt 0:00:58]} 28. Rbc1 {[%emt 0:05:17]} Qb4 {[%emt 0:00:18]} 29. Bd5 {[%emt 0:01:13]} 1-0

[Event "XVII Orsha-2019 Open"]
[Site "Orsha"]
[Date "2019.01.20"]
[Round "4.11"]
[White "Kirilin, Dmitrij"]
[Black "Paniagua Chnelik, Sebastian"]
[Result "1-0"]
[ECO "D45"]
[WhiteElo "2074"]
[BlackElo "2188"]
[PlyCount "85"]
[EventDate "2019.01.18"]
[EventType "swiss"]
[EventCountry "BLR"]
[TimeControl "5400+30"]

1. d4 d5 2. c4 e6 3. Nf3 Nf6 4. Nc3 c6 5. e3 Bd6 6. Qc2 Nbd7 7. g4 Nxg4 8. Rg1 Nxh2 9. Nxh2 Bxh2 10. Rxg7 h5 11. e4 Qf6 12. Rg2 Bf4 13. cxd5 Bxc1 14. Rxc1 exd5 15. exd5 Qxd4 16. Rg3 Ne5 17. Re3 Kf8 18. dxc6 bxc6 19. Rd1 Qf4 20. Ne4 Kg7 21. Be2 Bg4 22. Ng3 h4 23. Re4 Qg5 24. Rxg4 Nxg4 25. Qf5 Qxf5 26. Nxf5+ Kg6 27. Bxg4 h3 28. Ng3 h2 29. Bf3 Rae8+ 30. Kf1 Rb8 31. b3 Rhd8 32. Rc1 Rb6 33. Kg2 Ra6 34. Rc2 Rh8 35. Be2 Ra5 36. Rxc6+ Kg5 37. a4 f5 38. Bb5 a6 39. b4 axb5 40. bxa5 bxa4 41. Rc4 f4 42. Kh1 a3 43. Ra4 1-0

[Event "XVII Orsha-2019 Open"]
[Site "Orsha"]
[Date "2019.01.20"]
[Round "4.12"]
[White "Siniauski, Artsiom"]
[Black "Katkov, Mikhail"]
[Result "1-0"]
[ECO "B12"]
[WhiteElo "2182"]
[BlackElo "1916"]
[PlyCount "71"]
[EventDate "2019.01.18"]
[EventType "swiss"]
[EventCountry "BLR"]
[TimeControl "5400+30"]

1. e4 c6 2. d4 d5 3. e5 Bf5 4. h4 h6 5. g4 Be4 6. f3 Bh7 7. e6 fxe6 8. Bd3 Bxd3 9. Qxd3 Na6 10. Qg6+ Kd7 11. f4 Qe8 12. Qd3 g6 13. Nf3 Bg7 14. Ne5+ Bxe5 15. fxe5 Nf6 16. exf6 exf6 17. Rh2 e5 18. Re2 e4 19. Qb3 b5 20. Bf4 Qe6 21. Qa3 Nc7 22. Nd2 a5 23. Nb3 Na6 24. Nxa5 g5 25. Bh2 h5 26. gxh5 Rxh5 27. hxg5 Rah8 28. O-O-O Rxh2 29. Rxh2 Rxh2 30. Nb3 c5 31. Qxa6 Qxa6 32. Nxc5+ Kd6 33. Nxa6 f5 34. Rg1 e3 35. g6 e2 36. Kd2 1-0

[Event "XVII Orsha-2019 Open"]
[Site "Orsha"]
[Date "2019.01.20"]
[Round "4.13"]
[White "Khobotova, Olesia"]
[Black "Galkin, Gleb"]
[Result "1/2-1/2"]
[ECO "C69"]
[WhiteElo "1978"]
[BlackElo "2156"]
[PlyCount "103"]
[EventDate "2019.01.18"]
[EventType "swiss"]
[EventCountry "BLR"]
[TimeControl "5400+30"]

1. e4 e5 2. Nf3 Nc6 3. Bb5 a6 4. Bxc6 dxc6 5. O-O f6 6. d4 exd4 7. Nxd4 c5 8. Ne2 Qxd1 9. Rxd1 Bd7 10. Bf4 O-O-O 11. Nbc3 Bc6 12. Rxd8+ Kxd8 13. Rd1+ Kc8 14. f3 Ne7 15. Be3 Ng6 16. Nf4 Nxf4 17. Bxf4 Be7 18. Nd5 Bd8 19. Kf2 Bd7 20. h3 Be6 21. b3 c6 22. Ne3 Bc7 23. Bd6 Bxd6 24. Rxd6 Bd7 25. f4 Kc7 26. Rd2 b5 27. g4 a5 28. h4 Ra8 29. g5 Be6 30. f5 Bg8 31. gxf6 gxf6 32. Ng4 Rf8 33. Nh6 c4 34. Nxg8 cxb3 35. Nxf6 bxa2 36. Rd1 Rxf6 37. Ra1 Kd6 38. Rxa2 Ke5 39. Kf3 a4 40. Ra3 Rd6 41. Rc3 Kd4 42. Re3 Ke5 43. Rc3 Rh6 44. h5 Rxh5 45. Rxc6 Rh3+ 46. Kg4 Rh1 47. Rc5+ Kxe4 48. Rxb5 a3 49. Rb4+ Ke5 50. Rb5+ Ke4 51. Rb4+ Ke5 52. Rb5+ 1/2-1/2

[Event "XVII Orsha-2019 Open"]
[Site "Orsha"]
[Date "2019.01.20"]
[Round "4.14"]
[White "Papunidi, Matvey"]
[Black "Poliakova, Varvara"]
[Result "1-0"]
[ECO "C84"]
[WhiteElo "2113"]
[BlackElo "1835"]
[PlyCount "97"]
[EventDate "2019.01.18"]
[EventType "swiss"]
[EventCountry "BLR"]
[TimeControl "5400+30"]

1. e4 e5 2. Nf3 Nc6 3. Bb5 a6 4. Ba4 Nf6 5. d3 b5 6. Bb3 Be7 7. O-O d6 8. a3 O-O 9. Nc3 Bg4 10. Be3 Nd4 11. Bxd4 exd4 12. Nd5 c6 13. Nf4 Nh5 14. Nxh5 Bxh5 15. h3 Bf6 16. g4 Bg6 17. Nh2 h6 18. f4 Rc8 19. Nf3 Kh8 20. Qe1 c5 21. Bd5 Qb6 22. Qg3 c4 23. h4 cxd3 24. cxd3 Rc2 25. Rf2 Qc5 26. Raf1 Rxf2 27. Qxf2 Rc8 28. h5 Bh7 29. g5 Bd8 30. gxh6 gxh6 31. Bxf7 Bb6 32. Qh4 Bd8 33. Qf2 Bb6 34. Nh4 Qc2 35. Qg3 Qd2 36. Ng6+ Kg7 37. Ne7+ Kxf7 38. Nxc8 Bc7 39. Qh3 Qe3+ 40. Qxe3 dxe3 41. Rc1 Ba5 42. b4 Bd8 43. Nxd6+ Ke6 44. Nb7 Bh4 45. Nc5+ Kd6 46. Kf1 Bg8 47. Ke2 Bf2 48. e5+ Ke7 49. Ne4 1-0

[Event "XVII Orsha-2019 Open"]
[Site "Orsha"]
[Date "2019.01.20"]
[Round "4.15"]
[White "Abrazevich, Yauheni"]
[Black "Strybuk, Artsiom I"]
[Result "0-1"]
[ECO "C67"]
[WhiteElo "1914"]
[BlackElo "2110"]
[PlyCount "62"]
[EventDate "2019.01.18"]
[EventType "swiss"]
[EventCountry "BLR"]
[TimeControl "5400+30"]

1. e4 e5 2. Nf3 Nc6 3. Bb5 Nf6 4. O-O Nxe4 5. d4 Nd6 6. Bxc6 dxc6 7. dxe5 Nf5 8. Qxd8+ Kxd8 9. Nc3 Be7 10. Bg5 Bxg5 11. Nxg5 Ke7 12. Rad1 b6 13. Nf3 h5 14. Rfe1 Bb7 15. Ne2 c5 16. Ng5 Rhd8 17. Nf4 h4 18. e6 f6 19. Ng6+ Ke8 20. Rxd8+ Rxd8 21. e7 Rc8 22. Ne6 Bd5 23. Nd8 Bf7 24. Nf4 c6 25. Nxf7 Kxf7 26. Ne6 g5 27. f4 g4 28. Nd8+ Ke8 29. Re6 Nxe7 30. Nb7 Kf7 31. Re4 Nf5 0-1

[Event "XVII Orsha-2019 Open"]
[Site "Orsha"]
[Date "2019.01.20"]
[Round "4.17"]
[White "Prutskov, Aleksei"]
[Black "Shkalov, Oleg"]
[Result "1/2-1/2"]
[ECO "A40"]
[WhiteElo "1824"]
[BlackElo "2225"]
[PlyCount "97"]
[EventDate "2019.01.18"]
[EventType "swiss"]
[EventCountry "BLR"]
[TimeControl "5400+30"]

1. d4 g6 2. c4 Bg7 3. Nc3 b6 4. e4 c5 5. d5 d6 6. Be2 a6 7. Nf3 Ra7 8. O-O Nf6 9. Nd2 e5 10. Nb3 h5 11. h3 Nh7 12. f4 exf4 13. Bxf4 O-O 14. Qd3 h4 15. Nd2 f5 16. Bf3 g5 17. Be3 g4 18. hxg4 fxg4 19. Bd1 Be5 20. Ne2 Raf7 21. Bc2 Ng5 22. Rxf7 Rxf7 23. Rf1 g3 24. Bxg5 Rxf1+ 25. Nxf1 Qxg5 26. b3 Bg4 27. Bd1 Nd7 28. Kh1 Nf6 29. Ne3 Bxe2 30. Bxe2 Bd4 31. Nf5 Nxe4 32. Qf3 Nf2+ 33. Kg1 Nh3+ 34. Kf1 Nf4 35. Qg4 Qxg4 36. Bxg4 Be5 37. Nxh4 Kf7 38. Bf5 b5 39. Nf3 Kf6 40. Bc2 Bc3 41. Bb1 bxc4 42. bxc4 a5 43. a4 Bb2 44. Bc2 Bc3 45. Bb1 Be5 46. Bc2 Bc3 47. Bb1 Be5 48. Bc2 Bc3 49. Bb1 1/2-1/2

[Event "XVII Orsha-2019 Open"]
[Site "Orsha"]
[Date "2019.01.20"]
[Round "4.18"]
[White "Budnikov, Sergei"]
[Black "Zeliantsova, Kseniya"]
[Result "1/2-1/2"]
[ECO "A48"]
[WhiteElo "2152"]
[BlackElo "1858"]
[PlyCount "118"]
[EventDate "2019.01.18"]
[EventType "swiss"]
[EventCountry "BLR"]
[TimeControl "5400+30"]

1. d4 Nf6 2. Nf3 g6 3. Bf4 Bg7 4. e3 d6 5. Be2 O-O 6. O-O Nbd7 7. h3 Qe8 8. Bh2 e5 9. c3 Qe7 10. Na3 Ne8 11. Nc4 e4 12. Nfd2 d5 13. Na5 b6 14. Nab3 f5 15. c4 c6 16. a4 a5 17. c5 bxc5 18. dxc5 Bxb2 19. Rb1 Be5 20. Bxe5 Nxe5 21. Qc2 g5 22. Nd4 f4 23. Rb6 Rf6 24. Rfb1 Qc7 25. Qb3 Qf7 26. Rb8 Rxb8 27. Qxb8 f3 28. gxf3 exf3 29. Bf1 Qc7 30. Qxc7 Nxc7 31. Rb8 Rf8 32. N2xf3 Nxf3+ 33. Nxf3 Ne6 34. Ne5 Nxc5 35. Nxc6 Nxa4 36. Rxc8 Rxc8 37. Ne7+ Kg7 38. Nxc8 Nc3 39. Nd6 Kf6 40. Nb7 a4 41. Nc5 a3 42. Nb3 a2 43. Bd3 h5 44. Kg2 Ke5 45. Kg3 Nd1 46. f4+ Kf6 47. fxg5+ Kxg5 48. h4+ Kf6 49. Kf4 Nc3 50. Na1 Na4 51. Be2 Nc5 52. Bxh5 Ne6+ 53. Kf3 d4 54. e4 d3 55. Ke3 Ke5 56. Bf3 Nd4 57. Bd1 Ne6 58. h5 Ng5 59. Bf3 d2 1/2-1/2

[Event "XVII Orsha-2019 Open"]
[Site "Orsha"]
[Date "2019.01.20"]
[Round "4.19"]
[White "Runets, Ivan"]
[Black "Gonov, Sergey"]
[Result "1-0"]
[ECO "D02"]
[WhiteElo "2118"]
[BlackElo "1905"]
[PlyCount "69"]
[EventDate "2019.01.18"]
[EventType "swiss"]
[EventCountry "BLR"]
[TimeControl "5400+30"]

1. d4 d5 2. Nf3 Nf6 3. Bf4 e6 4. e3 Be7 5. h3 Nbd7 6. Nbd2 b6 7. Be2 Bb7 8. O-O O-O 9. a4 c5 10. Ne5 Ne4 11. Nxe4 dxe4 12. c3 Nxe5 13. Bxe5 Qd5 14. b3 cxd4 15. cxd4 Rfc8 16. Bc4 Qa5 17. Qg4 Bf8 18. Rfb1 Qd2 19. Rd1 Qa5 20. Rdc1 Bd5 21. b4 Qxb4 22. Bxd5 Rxc1+ 23. Rxc1 exd5 24. Qd7 Qe7 25. Qxd5 Rd8 26. Qc6 f5 27. Qb5 Rd7 28. Rc8 h6 29. Qc6 Kf7 30. Qc4+ Kg6 31. Qg8 Rd8 32. Rc6+ Kh5 33. Qc4 Kh4 34. Bg3+ Kh5 35. h4 1-0

[Event "XVII Orsha-2019 Open"]
[Site "Orsha"]
[Date "2019.01.20"]
[Round "4.20"]
[White "Kuleshov, Konstantin"]
[Black "Volchkov, Ivan"]
[Result "1-0"]
[ECO "D55"]
[WhiteElo "2098"]
[BlackElo "1685"]
[PlyCount "55"]
[EventDate "2019.01.18"]
[EventType "swiss"]
[EventCountry "BLR"]
[TimeControl "5400+30"]

1. d4 Nf6 2. c4 e6 3. Nc3 d5 4. cxd5 exd5 5. Bg5 Be7 6. e3 O-O 7. Bd3 Nbd7 8. Nf3 b6 9. O-O Bb7 10. Rc1 Ne4 11. Bxe7 Qxe7 12. Qa4 c5 13. Bb5 cxd4 14. Qxd4 Ndc5 15. Nxd5 Qd6 16. Nc3 Qg6 17. Nxe4 Bxe4 18. Be2 Rad8 19. Qc3 Rd3 20. Bxd3 Nxd3 21. Nh4 Qg4 22. Rcd1 Nxf2 23. Kxf2 Rc8 24. Kg1 g5 25. Qf6 gxh4 26. Qxf7+ Kh8 27. Qf6+ Kg8 28. Rd8+ 1-0

[Event "XVII Orsha-2019 Open"]
[Site "Orsha"]
[Date "2019.01.20"]
[Round "4.21"]
[White "Ghevondyan, Arman"]
[Black "Vifleemskaia, Svetlana"]
[Result "1-0"]
[ECO "A46"]
[WhiteElo "1679"]
[BlackElo "2030"]
[PlyCount "87"]
[EventDate "2019.01.18"]
[EventType "swiss"]
[EventCountry "BLR"]
[TimeControl "5400+30"]

1. Nf3 Nf6 2. g3 b5 3. d4 e6 4. Bg2 Bb7 5. O-O c5 6. a4 b4 7. c4 cxd4 8. Qxd4 Nc6 9. Qd3 Na5 10. Nbd2 Be7 11. e4 d6 12. b3 O-O 13. Bb2 Rc8 14. Rac1 Nd7 15. Rfd1 Qc7 16. Qe3 a6 17. Ne1 Bf6 18. Bxf6 Nxf6 19. Nd3 Nc6 20. h3 Rfd8 21. f4 Nd7 22. g4 Qb8 23. g5 Nc5 24. Nf2 e5 25. f5 Nd4 26. Ng4 Bc6 27. Rf1 Bd7 28. Rf2 Rf8 29. Qg3 Qc7 30. Rcf1 Kh8 31. Qh4 Qd8 32. Qh5 Be8 33. g6 fxg6 34. fxg6 Bxg6 35. Rxf8+ Qxf8 36. Rxf8+ Rxf8 37. Qg5 Re8 38. Qe3 Nc2 39. Qg3 Nd4 40. Kh2 Rf8 41. Nf2 a5 42. Nd3 Nce6 43. c5 Ne2 44. Qe3 1-0

[Event "XVII Orsha-2019 Open"]
[Site "Orsha"]
[Date "2019.01.20"]
[Round "4.22"]
[White "Nikolaev, Dmitry"]
[Black "Bury, Gleb M"]
[Result "0-1"]
[ECO "B18"]
[WhiteElo "1634"]
[BlackElo "1961"]
[PlyCount "84"]
[EventDate "2019.01.18"]
[EventType "swiss"]
[EventCountry "BLR"]
[TimeControl "5400+30"]

1. e4 c6 2. d4 d5 3. Nc3 dxe4 4. Nxe4 Bf5 5. Ng3 Bg6 6. Nf3 Nd7 7. Bd3 e6 8. Bxg6 hxg6 9. Bf4 Ngf6 10. O-O Nd5 11. Bg5 Qb6 12. c4 N5f6 13. Ne5 Rd8 14. Ng4 Be7 15. c5 Qc7 16. b4 Nxg4 17. Qxg4 Nf6 18. Bf4 Nxg4 19. Bxc7 Rd7 20. Be5 f6 21. h3 fxe5 22. hxg4 exd4 23. Rae1 Kf7 24. f4 Bh4 25. f5 exf5 26. Kh2 Bg5+ 27. Kg1 Be3+ 28. Rxe3 dxe3 29. gxf5 Re8 30. Re1 Rd2 31. fxg6+ Kxg6 32. Ne2 Rxa2 33. Nd4 Rd2 34. Ne2 Kg5 35. Kf1 Rf8+ 36. Kg1 Rf2 37. Nc3 Rxg2+ 38. Kh1 Rh2+ 39. Kg1 Rdg2+ 40. Kf1 e2+ 41. Nxe2 Rxe2 42. Rxe2 Rxe2 0-1

[Event "XVII Orsha-2019 Open"]
[Site "Orsha"]
[Date "2019.01.20"]
[Round "4.23"]
[White "Parshin, Maxim"]
[Black "Sychou, Dzmitry"]
[Result "1-0"]
[ECO "E92"]
[WhiteElo "1956"]
[BlackElo "1847"]
[PlyCount "81"]
[EventDate "2019.01.18"]
[EventType "swiss"]
[EventCountry "BLR"]
[TimeControl "5400+30"]

1. d4 Nf6 2. Nf3 g6 3. c4 Bg7 4. Nc3 O-O 5. e4 d6 6. Be2 e5 7. Be3 Nc6 8. d5 Ne7 9. Nd2 Ne8 10. c5 f5 11. f3 f4 12. Bf2 Nf6 13. Nc4 Ne8 14. b4 g5 15. Rc1 Ng6 16. h3 Rf7 17. Qb3 Bf8 18. a4 Nf6 19. cxd6 cxd6 20. Nb5 Nh5 21. Bxa7 Nh4 22. Bb6 Qd7 23. Rg1 Ng3 24. Kd2 Nxg2 25. Rxg2 Qxh3 26. Rcg1 Nxe4+ 27. Kc1 Bd7 28. Bf1 Qh4 29. fxe4 Bxb5 30. axb5 Qe1+ 31. Kc2 Ra1 32. Bd3 Rc1+ 33. Kb2 f3 34. Rxg5+ Bg7 35. Rxe1 Rxe1 36. Qc2 h6 37. Rg3 Rf4 38. Bf2 Rh1 39. Nxd6 Kh8 40. Qc7 Bf6 41. Qc8+ 1-0

[Event "XVII Orsha-2019 Open"]
[Site "Orsha"]
[Date "2019.01.20"]
[Round "4.24"]
[White "Stashis, Anna"]
[Black "Simonian, Anna"]
[Result "1-0"]
[ECO "B07"]
[WhiteElo "1931"]
[BlackElo "1289"]
[PlyCount "87"]
[EventDate "2019.01.18"]
[EventType "swiss"]
[EventCountry "BLR"]
[TimeControl "5400+30"]

1. d4 Nf6 2. Bf4 d6 3. Nc3 g6 4. e4 Bg7 5. Qd2 O-O 6. Bh6 Nbd7 7. h4 e5 8. d5 Nc5 9. f3 c6 10. O-O-O cxd5 11. Nxd5 Ncxe4 12. fxe4 Nxe4 13. Bxg7 Nxd2 14. Bf6 Nxf1 15. Rxf1 Qxf6 16. Nxf6+ Kg7 17. g4 Be6 18. Ne2 Bc4 19. Rh2 Rac8 20. Kd2 Rfd8 21. g5 d5 22. Rff2 d4 23. Nc1 Rc6 24. Nd3 Bxd3 25. Kxd3 Ra6 26. a3 Rb6 27. b3 Rc8 28. Ne4 Rbc6 29. Rf3 R8c7 30. Rhf2 b6 31. Rf6 a6 32. Rxc6 Rxc6 33. Rf6 Rxf6 34. Nxf6 h6 35. Ke4 hxg5 36. hxg5 Kf8 37. Kxe5 Ke7 38. Kxd4 Ke6 39. Ke4 b5 40. c4 bxc4 41. bxc4 Kd6 42. Kd4 Kc6 43. c5 a5 44. a4 1-0

[Event "XVII Orsha-2019 Open"]
[Site "Orsha"]
[Date "2019.01.20"]
[Round "4.25"]
[White "Naumovich, Yaroslav"]
[Black "Dolgopyatov, Andrey"]
[Result "1-0"]
[ECO "D45"]
[WhiteElo "1915"]
[BlackElo "1393"]
[PlyCount "57"]
[EventDate "2019.01.18"]
[EventType "swiss"]
[EventCountry "BLR"]
[TimeControl "5400+30"]

1. Nf3 d5 2. d4 Nf6 3. e3 e6 4. c4 c6 5. Nc3 Bd6 6. Bd3 O-O 7. O-O Re8 8. e4 dxe4 9. Nxe4 Nxe4 10. Bxe4 h6 11. b3 Nd7 12. Bb2 Nf6 13. Bc2 b6 14. Qe2 Bb7 15. Rad1 Qc7 16. Ne5 Rad8 17. f4 c5 18. Kh1 cxd4 19. Bxd4 Bc5 20. Bc3 Rd6 21. Ng4 Rxd1 22. Nxf6+ gxf6 23. Qg4+ Kf8 24. Rxd1 Ke7 25. Re1 Qc8 26. Qg7 Rg8 27. Bxf6+ Kd6 28. Rd1+ Kc7 29. Be5+ 1-0

[Event "XVII Orsha-2019 Open"]
[Site "Orsha"]
[Date "2019.01.20"]
[Round "4.26"]
[White "Sukalina, Alina"]
[Black "Vainerchuk, Barys"]
[Result "0-1"]
[ECO "A88"]
[WhiteElo "1546"]
[BlackElo "1907"]
[PlyCount "102"]
[EventDate "2019.01.18"]
[EventType "swiss"]
[EventCountry "BLR"]
[TimeControl "5400+30"]

1. d4 f5 2. c4 Nf6 3. Nc3 g6 4. Nf3 Bg7 5. g3 O-O 6. Bg2 d6 7. O-O c6 8. b3 Qe8 9. Qc2 h6 10. Ba3 Qf7 11. Rad1 Nbd7 12. d5 c5 13. Bb2 a6 14. a4 Re8 15. Rfe1 Nf8 16. h4 N8h7 17. Bc1 Ng4 18. Bf4 Nhf6 19. Nh2 Nxh2 20. Kxh2 g5 21. hxg5 Qh5+ 22. Kg1 hxg5 23. Bc1 Ng4 24. e3 Ne5 25. Bb2 g4 26. Ne2 Qg5 27. Nf4 Rb8 28. Qe2 Bd7 29. Bxe5 Bxe5 30. Nd3 Bf6 31. e4 Bc3 32. Rf1 Rf8 33. exf5 Bxf5 34. Nf4 Be5 35. Nd3 Bxd3 36. Qxd3 Rf7 37. Be4 Rbf8 38. Kg2 Rf6 39. Rd2 Bd4 40. Qc2 Qh6 41. Rh1 Qxd2 42. Qxd2 Rxf2+ 43. Qxf2 Rxf2+ 44. Kg1 Re2+ 45. Kf1 Rxe4 46. Rh5 Bf6 47. Kf2 Re5 48. Rxe5 Bxe5 49. Kg2 Kf7 50. Kf2 e6 51. dxe6+ Kxe6 0-1

[Event "XVII Orsha-2019 Open"]
[Site "Orsha"]
[Date "2019.01.20"]
[Round "4.27"]
[White "Egorenkov, Igor"]
[Black "Petrosyan, Sahak"]
[Result "1-0"]
[ECO "A14"]
[WhiteElo "2213"]
[BlackElo "1835"]
[PlyCount "69"]
[EventDate "2019.01.18"]
[EventType "swiss"]
[EventCountry "BLR"]
[TimeControl "5400+30"]

1. c4 e6 2. Nf3 d5 3. b3 Nf6 4. Bb2 c5 5. g3 Nc6 6. Bg2 Be7 7. O-O O-O 8. cxd5 Nxd5 9. Nc3 Bf6 10. Rb1 Nxc3 11. dxc3 Qc7 12. e4 e5 13. Qe2 Be6 14. Nd2 Rfd8 15. f4 Qa5 16. f5 Bc8 17. a4 Qc7 18. Nf3 b6 19. g4 Qe7 20. g5 Bxg5 21. Nxg5 Qxg5 22. Bc1 Qf6 23. Qh5 h6 24. h4 Ba6 25. c4 Rd6 26. Qg4 Qe7 27. Bf3 Kh8 28. Rb2 f6 29. Rg2 Qf8 30. Kh2 Rd7 31. Qh5 Qe8 32. Rg6 Ne7 33. Rxh6+ gxh6 34. Qxh6+ Kg8 35. Rg1+ 1-0

[Event "XVII Orsha-2019 Open"]
[Site "Orsha"]
[Date "2019.01.20"]
[Round "4.28"]
[White "Elkin, Leonid"]
[Black "Grigoryan, Aram"]
[Result "0-1"]
[ECO "C18"]
[WhiteElo "2085"]
[BlackElo "1786"]
[PlyCount "61"]
[EventDate "2019.01.18"]
[EventType "swiss"]
[EventCountry "BLR"]
[TimeControl "5400+30"]

1. e4 e6 2. d4 d5 3. Nc3 Bb4 4. e5 c5 5. a3 Bxc3+ 6. bxc3 Ne7 7. Qg4 Qc7 8. Qxg7 Rg8 9. Qxh7 cxd4 10. Ne2 dxc3 11. f4 Nbc6 12. h4 Bd7 13. h5 O-O-O 14. h6 Nf5 15. Qxf7 Rh8 16. h7 Qb6 17. Rh3 Kb8 18. Qg6 Ncd4 19. Nxd4 Qxd4 20. g4 Qe4+ 21. Be3 d4 22. gxf5 dxe3 23. Bd3 Qxf4 24. Qg3 Qxg3+ 25. Rxg3 Rxh7 26. Ke2 exf5 27. Kxe3 Rh4 28. Rg7 Bc6 29. Rf1 Rd5 30. Rf4 Rxe5+ 31. Kd4 {... 39 moves} 0-1